bitfinex-derivatives/quotes_ETHF0:USTF0_20260312
["timestamp","ask_amount","ask_price","bid_price","bid_amount"]
[1773340454730,0.36398156,2054.0,2053.3,0.022]
[1773340455224,0.36398156,2053.8,2053.3,0.022]
[1773340455420,0.36398156,2053.8,2053.1,0.022]
[1773340456031,0.58029854,2053.6,2053.1,0.022]
[1773340456626,0.58029854,2053.4,2052.9,0.59729064]
[1773340456828,0.58029854,2053.4,2052.5,0.59729064]
[1773340457028,0.58029854,2053.3,2052.5,0.59729064]
[1773340457423,0.58029854,2052.9,2052.5,0.022]
[1773340457632,0.58588888,2052.9,2052.3,0.022]
[1773340458433,0.00559034,2052.9,2052.3,0.59729064]
[1773340458827,0.58029854,2053.4,2052.3,0.59729064]
[1773340459728,0.58481615,2053.4,2052.5,0.57529064]
[1773340459928,0.00451761,2053.4,2052.5,0.57529064]
[1773340460131,0.00451761,2053.4,2052.4,2.84149211]
[1773340460132,0.00451761,2053.4,2052.8,0.57529064]
[1773340462331,0.59562392,2053.6,2052.5,0.5448089]
[1773340462634,0.59562392,2053.4,2052.5,0.5448089]
[1773340462831,0.59562392,2053.2,2052.5,0.5448089]
[1773340463029,0.24349,2053.1,2052.3,0.5721164]
[1773340463226,0.59562392,2053.0,2052.3,0.0273075]
[1773340464435,3.43711603,2053.0,2052.3,0.0273075]
[1773340464631,0.59562392,2052.9,2052.1,0.022]
[1773340464835,0.59562392,2052.7,2052.1,0.022]
[1773340465728,0.59562392,2052.7,2052.1,0.02591605]
[1773340466539,0.59562392,2052.9,2052.1,0.57072495]
[1773340466837,0.60013132,2053.1,2052.1,0.57072495]
[1773340467438,0.0045074,2053.1,2052.1,0.57072495]
[1773340468136,0.60013132,2053.1,2052.1,0.57072495]
[1773340469137,0.0045074,2053.1,2052.3,0.5448089]
[1773340471440,0.60013132,2053.1,2052.3,0.5448089]
[1773340471639,0.60013132,2053.1,2052.4,0.5448089]
[1773340471839,0.59562392,2052.9,2052.2,0.5448089]
[1773340473040,0.2435,2053.0,2052.2,0.5448089]
[1773340474335,0.0045074,2053.1,2052.2,0.5448089]
[1773340474542,0.0045074,2053.1,2052.4,0.7926489]
[1773340474737,0.0045074,2053.1,2052.6,0.7937989]
[1773340475044,0.0045074,2053.1,2052.7,0.7929089]
[1773340475244,0.60013132,2053.1,2052.2,0.5448089]
[1773340475540,0.60013132,2053.1,2052.1,2.86740816]
[1773340475541,0.60013132,2053.1,2052.5,0.5448089]
[1773340475739,0.60013132,2053.1,2052.7,0.5448089]
[1773340476541,0.59562392,2053.0,2052.2,0.5448089]
[1773340476943,0.59562392,2052.8,2052.2,0.5448089]
[1773340478444,0.59562392,2052.6,2051.9,0.022]
[1773340478649,0.59562392,2052.4,2051.9,0.022]
[1773340478940,0.83921392,2052.3,2051.9,0.5668089]
[1773340479146,0.59562392,2052.7,2051.9,0.5668089]
[1773340479344,0.59562392,2052.5,2051.9,0.5668089]
[1773340479647,0.59562392,2052.5,2051.9,0.5676933]
[1773340480242,0.24355,2052.6,2051.9,0.5676933]
[1773340480747,0.59562392,2052.5,2051.9,0.5676933]
[1773340481347,0.59562392,2052.7,2051.9,0.5676933]
[1773340481748,0.59562392,2053.0,2051.9,0.5676933]
[1773340483746,0.2480074,2053.1,2052.0,0.55957766]
[1773340483947,0.54767265,2053.0,2052.0,0.55957766]
[1773340484650,0.54767265,2053.0,2052.2,0.80390766]
[1773340484851,0.54767265,2053.0,2052.5,0.55957766]
[1773340486253,0.54767265,2053.0,2052.1,0.55957766]
[1773340489154,0.54767265,2053.0,2052.3,0.55957766]
[1773340489455,0.54767265,2053.0,2052.6,0.55957766]
[1773340490351,0.0045074,2053.1,2052.6,0.55957766]
[1773340490557,0.24347,2053.4,2052.6,0.55957766]
[1773340490757,0.81205179,2053.4,2052.6,0.55957766]
[1773340490946,0.56858179,2053.3,2052.6,0.55957766]
[1773340491248,0.56858179,2053.3,2052.6,0.80419766]
[1773340491457,0.57295049,2053.3,2052.9,0.5437254]
[1773340491847,0.55545783,2053.3,2052.9,0.5437254]
[1773340493551,0.24347,2053.4,2052.9,0.5437254]
[1773340493757,0.56858179,2053.7,2052.9,0.5437254]
[1773340494559,0.57316962,2053.7,2052.9,0.5437254]
[1773340496152,0.57316962,2053.7,2052.7,0.5437254]
[1773340496153,0.56858179,2053.3,2052.7,0.5437254]
[1773340496750,0.24346,2053.4,2052.7,0.5437254]
[1773340499266,0.57316962,2053.7,2053.0,0.5437254]
[1773340499471,0.57316962,2053.7,2053.1,0.7873954]
[1773340499770,0.24346,2053.4,2053.2,0.53935671]
[1773340500170,0.00458783,2053.7,2053.2,0.53935671]
[1773340500372,0.56858179,2054.1,2053.3,0.5437254]
[1773340500674,0.81194179,2054.2,2053.3,0.5437254]
[1773340500866,0.56858179,2054.1,2053.3,0.5437254]
[1773340501264,0.57269997,2054.1,2053.4,0.5437254]
[1773340501469,0.57269997,2054.1,2053.5,0.7900954]
[1773340501870,0.57269997,2054.1,2053.6,0.7891754]
[1773340502477,0.00411818,2054.1,2053.7,0.7872454]
[1773340502666,0.00411818,2054.1,2053.8,0.7879354]
[1773340502868,0.00411818,2054.1,2053.9,0.5437254]
[1773340503068,0.81194179,2054.2,2053.5,0.5437254]
[1773340504171,0.81802153,2054.2,2053.5,0.5437254]
[1773340504568,0.81802153,2054.2,2053.6,0.5437254]
[1773340504773,0.56858179,2053.9,2053.4,0.54977637]
[1773340505069,0.24339,2054.0,2053.4,0.54977637]
[1773340505070,0.56858179,2053.7,2053.4,0.00605097]
[1773340505267,0.56858179,2053.5,2053.4,0.00605097]
[1773340505468,0.56858179,2053.5,2053.0,0.5437254]
[1773340506076,0.56858179,2053.3,2052.4,0.5437254]
[1773340506382,0.56858179,2053.3,2052.4,0.54753354]
[1773340508071,0.81206179,2053.2,2052.4,0.54753354]
[1773340508474,0.56858179,2052.9,2052.4,0.54753354]
[1773340511480,0.56858179,2052.9,2052.4,0.79113354]
[1773340511677,0.56858179,2052.9,2052.5,0.7874854]
[1773340512079,0.56858179,2052.9,2052.5,0.5437254]
[1773340512879,0.56858179,2052.9,2052.4,0.54753354]
[1773340514280,0.2435,2053.0,2052.4,0.54753354]
[1773340514581,0.56858179,2053.1,2052.4,0.54753354]
[1773340515081,0.56858179,2053.4,2052.4,0.54753354]
[1773340515985,0.81203179,2053.5,2052.6,0.5437254]
[1773340516187,0.56858179,2053.4,2052.6,0.5437254]
[1773340516479,0.56858179,2053.9,2052.8,0.5437254]
[1773340516786,0.56858179,2053.5,2052.9,0.5437254]
[1773340516984,0.56858179,2053.5,2052.5,6.378]
[1773340516985,0.56858179,2053.5,2053.0,0.5437254]
[1773340517282,0.00607974,2054.2,2053.2,0.5437254]
[1773340517483,0.56858179,2054.5,2053.6,0.5437254]
[1773340517784,0.56858179,2054.5,2053.7,0.5437254]
[1773340518581,6.28150248,2054.9,2053.8,0.5437254]
[1773340518582,0.56858179,2054.9,2053.8,0.5437254]
[1773340518787,0.56858179,2054.6,2053.9,0.5437254]
[1773340519084,0.54658179,2054.4,2054.1,0.022]
[1773340519378,0.54658179,2054.4,2053.9,0.022]
[1773340519575,0.5507164,2054.4,2053.9,0.02628878]
[1773340519774,0.6167164,2054.4,2053.9,0.57001418]
[1773340520480,0.58727922,2054.2,2053.9,0.02628878]
[1773340520682,0.58727922,2054.2,2053.7,0.59790997]
[1773340521485,0.58727922,2054.2,2053.7,0.022]
[1773340521687,0.58727922,2054.2,2053.7,0.0273571]
[1773340521985,0.58727922,2054.2,2053.7,0.60326707]
[1773340523984,0.58727922,2054.0,2053.5,0.022]
[1773340524285,0.58727922,2054.0,2053.3,0.59790997]
[1773340524683,0.58727922,2053.8,2053.3,0.022]
[1773340524983,0.58727922,2053.4,2053.3,0.00520359]
[1773340525176,0.58727922,2053.4,2052.9,0.022]
[1773340525381,0.58727922,2053.4,2052.9,0.59790997]
[1773340525684,0.24345,2053.5,2052.9,0.59790997]
[1773340525985,0.58727922,2053.4,2052.9,0.022]
[1773340526187,0.58727922,2053.4,2052.9,0.02645296]
[1773340526381,0.58727922,2053.4,2052.9,0.60236293]
[1773340527688,0.58727922,2053.4,2052.9,0.02645296]
[1773340528292,0.58727922,2053.4,2052.9,0.60236293]
[1773340528492,0.58727922,2053.8,2052.9,0.60236293]
[1773340533390,0.176,2053.9,2052.9,0.60236293]
[1773340533590,0.58727922,2053.8,2052.9,0.60236293]
[1773340535590,0.58727922,2053.8,2053.0,0.57590997]
[1773340535790,0.58727922,2053.8,2053.1,0.57590997]
[1773340536597,0.58727922,2053.8,2053.4,0.57590997]
[1773340536793,0.58727922,2053.8,2053.4,0.82270997]
[1773340537190,0.58727922,2053.8,2053.4,0.57590997]
[1773340538491,0.58727922,2053.8,2053.0,0.57590997]
[1773340539298,0.176,2053.9,2053.0,0.57590997]
[1773340539797,0.76327922,2053.9,2053.0,0.57590997]
[1773340540386,0.76327922,2053.9,2053.2,0.82593997]
[1773340540591,0.76327922,2053.9,2053.5,0.57590997]
[1773340540794,0.58727922,2053.8,2053.5,0.82538997]
[1773340541397,0.58727922,2053.8,2053.5,0.57590997]
[1773340543297,0.71636964,2053.9,2053.5,0.57590997]
[1773340543498,0.176,2053.9,2053.5,0.57590997]
[1773340544794,0.54036964,2053.8,2053.2,0.56119436]
[1773340545200,0.176,2053.9,2053.2,0.56119436]
[1773340546294,0.176,2053.9,2053.3,0.80631436]
[1773340546500,0.71636964,2053.9,2053.6,0.80631436]
[1773340546702,0.71636964,2053.9,2053.6,0.56119436]
[1773340547601,0.71636964,2053.9,2053.1,0.56119436]
[1773340548501,0.71636964,2053.9,2053.1,0.80645436]
[1773340548702,0.54036964,2053.8,2053.4,0.56119436]
[1773340548903,0.54036964,2053.8,2053.5,0.80824436]
[1773340549296,0.54036964,2053.8,2053.3,0.56119436]
[1773340549497,0.54036964,2053.8,2053.4,0.81001436]
[1773340549700,0.71636964,2053.9,2053.5,0.81010436]
[1773340549901,6.38213461,2054.4,2053.6,0.80914436]
[1773340549902,0.54036964,2054.1,2053.6,0.80914436]
[1773340550296,0.55215421,2054.3,2053.9,0.61564283]
[1773340550805,0.57414451,2054.8,2053.9,0.61564283]
[1773340551003,0.57414451,2054.8,2053.9,0.59364283]
[1773340551901,0.57975897,2054.8,2053.9,0.59364283]
[1773340556603,0.57768918,2054.6,2053.9,0.59364283]
[1773340559700,0.56269255,2054.4,2053.6,0.59364283]
[1773340560604,0.56269255,2054.7,2053.7,0.59364283]
[1773340561197,0.56269255,2054.7,2053.8,0.59364283]
[1773340561806,7.29630517,2055.3,2053.7,7.61173219]
[1773340561807,0.56946355,2055.1,2054.1,0.59364283]
[1773340562005,0.56946355,2055.1,2054.2,0.83724283]
[1773340562198,0.56946355,2055.1,2054.6,0.59364283]
[1773340562406,1.49438318,2055.3,2054.7,0.59364283]
[1773340562605,0.57507801,2055.3,2054.7,0.59364283]
[1773340562798,0.00433528,2055.3,2055.1,0.022]
[1773340562997,0.55307801,2055.4,2054.7,0.02571753]
[1773340563403,0.55307801,2055.4,2054.7,0.61936036]
[1773340563604,0.55893053,2055.2,2054.7,0.61936036]
[1773340563806,0.00647573,2055.3,2054.7,0.61936036]
[1773340564006,0.01206002,2055.3,2054.7,0.61936036]
[1773340564606,0.57099055,2055.3,2054.7,0.61936036]
[1773340578424,0.01206002,2055.3,2054.7,0.61936036]
[1773340579422,0.01206002,2055.3,2054.7,0.86944036]
[1773340579621,0.01206002,2055.3,2054.8,0.84414283]
[1773340579823,0.01206002,2055.3,2054.9,0.84482283]
[1773340580023,0.55465986,2055.3,2055.0,0.59364283]
[1773340580323,0.55465986,2055.3,2055.0,0.83860283]
[1773340580528,0.536995,2055.3,2055.0,0.83860283]
[1773340580920,0.51443116,2055.5,2055.1,0.26831]
[1773340581520,0.51930194,2055.5,2055.1,0.022]
[1773340582326,0.51869903,2055.3,2055.1,0.022]
[1773340584424,0.52144164,2055.5,2055.1,0.57739232]
[1773340584730,0.52144164,2056.1,2055.1,0.57739232]
[1773340585028,0.52144164,2056.1,2055.1,0.55539232]
[1773340585221,0.49944164,2056.1,2055.9,0.022]
[1773340585425,0.49944164,2056.1,2055.7,0.022]
[1773340585623,0.50405903,2056.1,2055.7,0.022]
[1773340585829,0.54805903,2056.1,2055.7,0.022]
[1773340590531,0.04861739,2056.1,2055.7,0.57739232]
[1773340590719,0.49122492,2056.0,2055.7,0.022]
[1773340591321,0.49122492,2056.0,2055.7,0.57739232]
[1773340591528,0.53612987,2056.1,2055.7,0.57739232]
[1773340591724,0.04861739,2056.1,2055.7,0.57739232]
[1773340591930,6.374,2056.4,2055.7,0.55539232]
[1773340591931,0.48751248,2056.4,2055.7,0.55539232]
[1773340592425,0.46551248,2056.4,2055.8,0.57739232]
[1773340592821,0.46974947,2056.4,2055.8,0.57739232]
[1773340593025,0.022,2056.5,2055.8,0.57739232]
[1773340593230,0.022,2056.5,2055.4,6.395]
[1773340593231,0.46551248,2056.9,2056.0,0.55539232]
[1773340593522,0.24302,2057.2,2056.0,0.55539232]
[1773340593523,0.44351248,2057.1,2056.0,0.55539232]
[1773340593725,0.43899161,2056.7,2056.0,0.55539232]
[1773340594119,0.44420615,2056.7,2056.0,0.55539232]
[1773340596823,0.00521454,2056.7,2056.3,0.55539232]
[1773340597024,0.43813592,2056.7,2056.3,0.55959521]
[1773340597330,0.43813592,2056.7,2056.1,0.55539232]
[1773340597537,0.43002322,2056.5,2055.8,0.57739232]
[1773340597829,0.43002322,2056.3,2055.8,0.57739232]
[1773340598328,0.43002322,2056.3,2055.8,0.58114044]
[1773340598533,0.43002322,2056.1,2055.6,0.57739232]
[1773340599130,0.24313,2056.2,2055.6,0.57739232]
[1773340599726,0.24313,2056.2,2055.6,0.58362306]
[1773340600234,0.64220529,2056.2,2055.6,0.58362306]
[1773340600829,0.044,2056.6,2055.6,0.58362306]
[1773340600830,0.44307529,2056.6,2055.6,0.58362306]
[1773340601728,0.39256231,2056.4,2055.6,0.58362306]
[1773340602429,0.39256231,2056.2,2055.6,0.58362306]
[1773340605134,0.39256231,2056.2,2055.7,0.82875246]
[1773340605434,0.39256231,2056.2,2055.8,0.82859246]
[1773340605634,0.39256231,2056.2,2055.8,0.58429246]
[1773340606832,0.24311,2056.3,2055.8,0.58429246]
[1773340607134,0.63924026,2056.3,2055.8,0.58429246]
[1773340607335,0.39613026,2056.2,2055.8,0.58429246]
[1773340607530,0.39613026,2056.2,2055.7,0.58429246]
[1773340607735,0.39613026,2056.2,2055.6,0.6125232]
[1773340610434,0.40215211,2056.0,2055.6,0.02823074]
[1773340610629,0.40215211,2056.0,2055.2,0.022]
[1773340610630,0.54680591,2056.3,2055.2,0.60244318]
[1773340610834,6.06949794,2056.7,2055.3,0.58044318]
[1773340610835,0.088,2056.1,2055.3,0.58044318]
[1773340611232,0.088,2056.1,2055.4,0.82566318]
[1773340611432,0.72391591,2056.4,2055.9,0.58044318]
[1773340611734,0.72391591,2056.4,2055.9,0.58414811]
[1773340611927,0.72391591,2056.4,2056.2,0.022]
[1773340611928,0.70191591,2056.4,2056.2,0.022]
[1773340612333,0.70191591,2056.4,2056.0,0.60244318]
[1773340612532,0.49413292,2056.3,2056.0,0.022]
[1773340612738,0.49413292,2056.1,2055.8,0.60244318]
[1773340613238,0.73726292,2056.2,2055.8,0.60244318]
[1773340613437,0.49413292,2056.1,2055.8,0.60244318]
[1773340613837,0.49413292,2056.1,2055.8,0.60865811]
[1773340614239,0.74991052,2056.2,2055.8,0.60865811]
[1773340615039,0.79626295,2056.0,2055.6,0.60244318]
[1773340615637,2.84081839,2056.5,2055.8,0.58044318]
[1773340615638,0.2431,2056.4,2055.8,0.58044318]
[1773340615843,0.00521454,2056.7,2055.8,8.20521025]
[1773340616037,0.22105,2056.9,2056.3,0.58044318]
[1773340616544,0.77416295,2056.9,2056.3,0.58044318]
[1773340616733,0.55311295,2056.8,2056.3,0.58044318]
[1773340617043,0.55831478,2056.8,2056.3,0.58044318]
[1773340617834,0.00520183,2056.8,2056.3,0.58044318]
[1773340618038,0.022,2057.0,2056.6,0.58044318]
[1773340618239,0.57511295,2057.0,2056.6,0.58044318]
[1773340619143,0.57957757,2057.0,2056.6,0.58044318]
[1773340619344,0.55311295,2056.9,2056.6,0.58044318]
[1773340619942,0.55311295,2056.9,2056.3,0.58044318]
[1773340620244,0.55311295,2056.7,2056.3,0.58044318]
[1773340620441,0.55311295,2056.7,2056.2,0.60244318]
[1773340620636,0.55311295,2056.3,2056.0,0.022]
[1773340620846,0.55311295,2056.3,2055.9,0.58044318]
[1773340621545,0.2431,2056.4,2055.9,0.58044318]
[1773340621848,0.79616295,2056.9,2056.0,0.58044318]
[1773340622042,0.77416295,2056.9,2056.7,0.022]
[1773340622341,0.55311295,2056.8,2056.5,0.60244318]
[1773340623347,0.79616289,2056.9,2056.5,0.60244318]
[1773340623646,0.044,2056.9,2056.5,0.60244318]
[1773340623945,0.044,2056.9,2056.5,0.84577318]
[1773340624146,0.24299,2057.4,2056.9,0.58044318]
[1773340624342,0.24299,2057.4,2056.3,2.86281839]
[1773340624343,0.24299,2057.4,2057.2,0.5488291]
[1773340624642,0.22099,2057.4,2057.2,0.5708291]
[1773340625043,0.22099,2057.4,2057.0,0.022]
[1773340625044,0.55311295,2057.3,2057.0,0.022]
[1773340625245,0.26499,2057.4,2057.0,0.60244318]
[1773340625648,0.81810295,2057.4,2057.0,0.60244318]
[1773340626447,0.55311295,2057.8,2057.0,0.60244318]
[1773340626646,0.55311295,2057.8,2056.6,14.01676707]
[1773340626647,0.55311295,2058.2,2057.2,0.58044318]
[1773340626848,0.53111295,2058.7,2058.1,0.58044318]
[1773340627040,0.79592295,2058.9,2058.1,0.58044318]
[1773340627440,0.79592295,2058.9,2058.1,0.58468909]
[1773340627441,0.022,2058.8,2058.1,0.58468909]
[1773340627641,0.55311295,2058.6,2058.1,0.00424591]
[1773340627844,0.55311295,2058.4,2058.1,0.00424591]
[1773340628046,5.99548,2058.8,2057.8,0.022]
[1773340628047,0.55311295,2058.2,2057.8,0.022]
[1773340628249,0.55311295,2058.0,2057.6,0.60244318]
[1773340628947,0.55311295,2058.0,2057.6,0.60648524]
[1773340629852,0.55311295,2058.1,2057.6,0.60648524]
[1773340630052,0.61911295,2058.3,2057.6,0.60648524]
[1773340630254,0.066,2058.3,2057.6,0.60648524]
[1773340630555,0.61911295,2058.3,2057.6,0.60648524]
[1773340631042,0.61911295,2058.3,2057.6,0.02604206]
[1773340631246,0.55311295,2058.1,2057.6,0.02604206]
[1773340631454,0.55311295,2057.9,2057.4,0.022]
[1773340631649,0.55311295,2057.9,2057.2,0.022]
[1773340631849,0.55311295,2057.9,2057.2,0.60244318]
[1773340632552,0.55311295,2057.9,2057.2,0.60592782]
[1773340632755,0.55311295,2057.7,2057.2,0.02548464]
[1773340633051,0.55311295,2057.7,2057.2,0.60592782]
[1773340633751,0.55311295,2057.9,2057.2,0.60592782]
[1773340636454,0.55311295,2058.3,2057.8,0.58044318]
[1773340636851,0.55311295,2058.3,2058.1,0.022]
[1773340636852,0.53111295,2058.3,2058.1,0.022]
[1773340637051,0.52686689,2058.3,2057.9,0.60244318]
[1773340637253,0.52686689,2058.3,2057.7,0.022]
[1773340637449,0.55311295,2058.1,2057.5,0.022]
[1773340637653,0.55311295,2058.1,2057.5,0.60244318]
[1773340638057,0.55311295,2058.1,2057.5,0.022]
[1773340638658,0.55311295,2057.9,2057.5,0.022]
[1773340638855,0.55311295,2057.9,2057.3,0.022]
[1773340639356,0.55311295,2057.7,2057.3,0.022]
[1773340639755,0.55311295,2057.7,2057.2,0.00348464]
[1773340640262,0.55311295,2057.7,2057.2,0.70570784]
[1773340641169,0.55311295,2057.7,2057.2,0.00348464]
[1773340641558,0.65231061,2057.5,2057.2,0.00348464]
[1773340641861,0.65231061,2057.5,2057.1,0.022]
[1773340642057,0.24296,2057.6,2057.1,0.7242232]
[1773340642360,0.89527061,2057.6,2057.1,0.7242232]
[1773340642760,0.89527061,2057.6,2057.1,0.72819222]
[1773340642961,0.65231061,2057.5,2057.1,0.72819222]
[1773340643360,0.65231061,2057.5,2056.9,0.022]
[1773340643556,0.65231061,2057.5,2056.9,0.7242232]
[1773340644456,0.24296,2057.6,2056.9,0.73009704]
[1773340644656,0.154,2057.8,2056.9,0.73009704]
[1773340645759,0.24291,2058.1,2057.4,0.7022232]
[1773340645760,0.89522061,2058.1,2057.4,0.7022232]
[1773340645960,0.65231061,2058.1,2057.4,0.7022232]
[1773340646156,0.65231061,2058.1,2057.9,0.022]
[1773340646157,0.63031061,2058.1,2057.9,0.022]
[1773340646357,0.63031061,2058.1,2057.7,0.26773]
[1773340646553,0.63031061,2058.1,2057.7,0.9699532]
[1773340646757,0.67431061,2058.1,2057.7,0.7242232]
[1773340646963,0.67431061,2058.1,2057.7,0.022]
[1773340647862,0.67431061,2058.1,2057.7,0.7242232]
[1773340648558,0.67431061,2058.1,2057.7,0.022]
[1773340649362,0.65231061,2057.9,2057.5,0.7242232]
[1773340650367,0.65231061,2057.9,2057.5,0.022]
[1773340651666,0.65231061,2057.5,2057.3,0.022]
[1773340651966,0.65231061,2057.5,2057.1,0.7242232]
[1773340652466,0.76231061,2057.8,2057.1,0.7242232]
[1773340652862,0.11,2057.8,2057.1,0.7242232]
[1773340653058,0.24291,2058.1,2057.2,0.7022232]
[1773340653360,0.24291,2058.1,2057.3,0.7022232]
[1773340653560,0.65231061,2058.0,2057.9,0.022]
[1773340653760,0.65231061,2058.0,2057.7,0.022]
[1773340653961,0.65231061,2057.8,2057.5,0.022]
[1773340656062,6.366,2058.4,2057.5,0.7242232]
[1773340656063,0.65231061,2058.2,2057.5,0.7242232]
[1773340656268,0.65231061,2058.2,2057.5,0.7022232]
[1773340656456,0.63031061,2058.2,2058.0,0.022]
[1773340656662,0.63031061,2058.2,2057.8,0.022]
[1773340657262,0.67431061,2058.2,2057.8,0.022]
[1773340659163,0.65231061,2058.0,2057.6,0.022]
[1773340659369,0.65231061,2057.8,2057.4,0.022]
[1773340660772,0.65231061,2057.8,2057.2,0.7242232]
[1773340661273,0.65231061,2057.6,2057.2,0.022]
[1773340661874,0.65231061,2057.6,2057.2,0.7242232]
[1773340662173,0.65231061,2057.6,2057.2,0.022]
[1773340662572,0.65231061,2057.6,2057.2,0.83901178]
[1773340663473,0.65231061,2057.6,2057.2,0.022]
[1773340665369,0.65231061,2057.6,2057.2,0.83901178]
[1773340666178,0.65231061,2057.6,2057.2,0.022]
[1773340667075,5.75261524,2058.2,2057.0,0.83901178]
[1773340667076,0.80283892,2057.4,2057.0,0.83901178]
[1773340667272,0.02573504,2057.4,2057.0,0.83901178]
[1773340668686,0.00351138,2057.4,2057.0,0.83901178]
[1773340669885,0.8063503,2057.4,2057.0,0.83901178]
[1773340670483,0.84169095,2057.7,2057.3,0.7998916]
[1773340670887,0.132,2057.8,2057.3,0.7998916]
[1773340671089,0.97369095,2057.8,2057.3,0.7998916]
[1773340671383,0.97369095,2057.8,2057.1,0.7998916]
[1773340671583,0.97938185,2057.8,2057.1,0.7998916]
[1773340678691,0.1376909,2057.8,2057.3,0.7998916]
[1773340679196,0.84169095,2058.1,2057.4,0.7998916]
[1773340679487,0.81969095,2058.1,2057.9,0.022]
[1773340679690,0.77220619,2058.1,2057.9,0.022]
[1773340679890,6.367,2058.6,2057.9,0.8218916]
[1773340679891,0.24289,2058.2,2057.9,0.8218916]
[1773340680088,0.24289,2058.2,2057.7,0.022]
[1773340680089,0.84169095,2058.1,2057.7,0.022]
[1773340680298,1.08463095,2057.8,2057.5,0.8218916]
[1773340680789,0.24294,2057.8,2057.5,0.8218916]
[1773340681185,0.84169095,2057.9,2057.5,0.8218916]
[1773340683490,0.84169095,2058.6,2057.5,0.8218916]
[1773340683692,0.04750068,2058.4,2058.0,0.7998916]
[1773340684489,0.88919163,2058.3,2057.9,7.1658916]
[1773340684791,0.88919163,2058.3,2058.0,0.7998916]
[1773340684991,0.04750068,2058.3,2058.0,0.7998916]
[1773340686200,0.88919163,2058.3,2058.0,0.7998916]
[1773340686598,0.04750068,2058.2,2057.8,0.7998916]
[1773340686897,0.84725746,2058.4,2057.8,0.7998916]
[1773340687097,0.88919163,2058.3,2057.8,0.7998916]
[1773340687492,0.84169095,2058.1,2057.8,0.7998916]
[1773340687688,0.88919163,2058.2,2057.8,0.7998916]
[1773340687892,0.04750068,2058.1,2057.8,0.7998916]
[1773340688293,1.08459095,2058.1,2057.8,0.7998916]
[1773340688597,0.2429,2058.1,2057.8,0.7998916]
[1773340689298,0.84169095,2058.2,2057.8,0.7998916]
[1773340689498,0.04750068,2058.1,2057.8,0.7998916]
[1773340689695,0.84169095,2058.2,2057.8,0.7998916]
[1773340690394,0.04750068,2058.2,2057.8,0.7998916]
[1773340690700,0.00556651,2058.4,2057.8,0.7998916]
[1773340690996,0.00556651,2058.4,2057.9,1.0448216]
[1773340691190,0.00556651,2058.4,2058.1,1.0470316]
[1773340691389,0.00556651,2058.4,2058.1,0.24714]
[1773340691597,0.00556651,2058.4,2058.2,0.7998916]
[1773340691792,0.84169095,2058.9,2058.3,0.7998916]
[1773340691997,0.7632317,2059.2,2058.3,0.7998916]
[1773340692292,0.7632317,2059.2,2058.5,0.7998916]
[1773340692497,0.84169095,2059.1,2058.5,7.1648916]
[1773340692795,0.84169095,2058.9,2058.5,6.37019719]
[1773340693098,0.24279,2059.0,2058.6,0.7998916]
[1773340693298,1.08448095,2059.0,2058.6,0.7998916]
[1773340693702,0.84169095,2058.9,2058.6,0.7998916]
[1773340695201,1.08448095,2059.0,2058.6,0.7998916]
[1773340695599,0.84169095,2058.9,2058.3,0.7998916]
[1773340695904,1.08448095,2059.0,2058.1,0.7998916]
[1773340696400,0.84169095,2058.9,2058.1,0.7998916]
[1773340696800,0.84169095,2058.9,2058.1,0.80608799]
[1773340697500,0.84169095,2058.9,2058.4,0.7998916]
[1773340698103,0.24282,2058.8,2058.3,0.022]
[1773340698301,0.84169095,2058.7,2058.3,0.022]
[1773340698503,0.84169095,2058.7,2058.1,0.02819639]
[1773340698906,0.84169095,2058.5,2058.1,0.02819639]
[1773340699296,5.97291,2059.0,2057.9,0.8218916]
[1773340699297,0.84169095,2058.3,2057.9,0.8218916]
[1773340699499,0.84169095,2058.3,2057.7,0.022]
[1773340699703,0.90769095,2058.2,2057.7,0.8218916]
[1773340700407,0.90769095,2058.2,2057.7,0.82597588]
[1773340701511,0.90769095,2058.2,2057.7,0.02608428]
[1773340701809,0.90769095,2058.2,2057.7,0.94789846]
[1773340706005,0.89824843,2058.0,2057.5,0.94381418]
[1773340706607,0.89824843,2058.0,2057.5,0.022]
[1773340706811,0.89824843,2058.0,2057.5,0.94381418]
[1773340707008,0.89824843,2058.0,2057.5,0.94886806]
[1773340707802,1.22914843,2058.1,2057.5,0.94886806]
[1773340708012,0.088,2058.1,2057.5,0.94886806]
[1773340708907,0.98624843,2058.1,2057.5,0.94886806]
[1773340710107,0.088,2058.1,2057.5,0.94886806]
[1773340710611,0.088,2058.1,2057.6,1.16512418]
[1773340710813,0.088,2058.1,2057.7,1.16627418]
[1773340711002,0.088,2058.1,2057.7,0.92181418]
[1773340711208,0.98624843,2058.1,2057.7,0.92181418]
[1773340712311,0.088,2058.1,2057.7,0.92181418]
[1773340712512,0.98624843,2058.1,2057.7,0.92181418]
[1773340712914,0.088,2058.1,2057.7,0.92181418]
[1773340713115,0.98624843,2058.1,2057.7,0.92181418]
[1773340716321,0.088,2058.1,2057.7,0.92181418]
[1773340717412,0.89824843,2058.4,2057.7,0.92181418]
[1773340718014,0.87624843,2058.4,2058.2,0.022]
[1773340718922,0.92024843,2058.4,2058.0,0.94381418]
[1773340720618,0.2429,2058.1,2057.8,0.022]
[1773340720814,0.89824843,2058.0,2057.6,0.94381418]
[1773340721209,0.89824843,2057.8,2057.5,0.00505388]
[1773340721415,0.89824843,2057.8,2057.4,0.022]
[1773340721716,0.89824843,2057.8,2057.4,0.94381418]
[1773340721918,0.24292,2057.9,2057.4,0.94381418]
[1773340722319,1.00824843,2058.1,2057.4,0.94923719]
[1773340722517,0.11,2058.1,2057.4,0.94923719]
[1773340723215,0.11,2058.1,2057.4,8.57400426]
[1773340723419,0.11,2058.1,2057.6,0.97246198]
[1773340724722,0.11,2058.1,2057.7,0.97246198]
[1773340725233,1.08772157,2058.1,2057.7,0.97246198]
[1773340725734,1.08772157,2058.1,2057.5,0.97246198]
[1773340725936,0.11,2058.1,2057.6,0.97246198]
[1773340726237,1.08772157,2058.1,2057.6,0.97246198]
[1773340726630,0.11,2058.1,2057.6,0.97246198]
[1773340726829,1.08772157,2058.1,2057.6,0.97246198]
[1773340727832,1.08772157,2058.1,2057.4,8.62465206]
[1773340728034,0.97772157,2057.9,2057.4,0.99988499]
[1773340728431,0.24291,2058.0,2057.4,0.99988499]
[1773340729039,1.22063157,2058.0,2057.4,0.02742301]
[1773340729741,1.22068157,2057.6,2057.2,7.35946198]
[1773340730237,1.22068157,2057.6,2057.2,0.022]
[1773340730737,1.22683002,2057.6,2057.2,1.07951869]
[1773340731737,0.97407888,2057.5,2057.2,1.07951869]
[1773340733343,0.97407888,2057.5,2057.2,0.02810357]
[1773340733737,0.97407888,2057.5,2057.1,1.05141512]
[1773340733937,1.22318733,2057.6,2057.1,1.05141512]